bitfinex-derivatives/quotes_BNBF0:USTF0_20230831
["timestamp","ask_amount","ask_price","bid_price","bid_amount"]
[1693486776145,0.07269289,223.73,223.42,0.19041073]
[1693486776346,0.07269289,223.73,223.39,0.19041073]
[1693486776547,0.07269289,223.73,223.4,0.19041073]
[1693486776744,0.07269289,223.73,223.41,0.19041073]
[1693486776945,0.07269289,223.73,223.39,0.19041073]
[1693486777145,0.07269289,223.73,223.4,0.19041073]
[1693486777345,0.07269289,223.73,223.41,0.19041073]
[1693486777542,0.07269289,223.73,223.42,0.19041073]
[1693486777746,0.07269289,223.73,223.43,0.19041073]
[1693486777946,0.07269289,223.73,223.4,0.19041073]
[1693486778145,0.07269289,223.73,223.41,0.19041073]
[1693486778343,0.07269289,223.73,223.42,0.19041073]
[1693486778547,0.07269289,223.73,223.4,0.19041073]
[1693486778747,0.07269289,223.73,223.41,0.19041073]
[1693486779047,0.07269289,223.73,223.42,0.19041073]
[1693486779246,0.07269289,223.73,223.43,0.19041073]
[1693486779448,0.07269289,223.73,223.4,0.19041073]
[1693486779643,0.07269289,223.73,223.41,0.19041073]
[1693486779947,0.07269289,223.72,223.42,0.19041073]
[1693486780246,0.07269289,223.72,223.43,0.19041073]
[1693486780448,0.07269289,223.72,223.44,0.19041073]
[1693486780652,0.07269289,223.72,223.45,0.19041073]
[1693486780845,0.07269289,223.72,223.41,0.19041073]
[1693486781045,0.07269289,223.72,223.42,0.19041073]
[1693486781348,0.07269289,223.72,223.43,0.19041073]
[1693486781549,0.07269289,223.72,223.44,0.19041073]
[1693486781745,0.07269289,223.72,223.41,0.26349064]
[1693486782049,0.07269289,223.72,223.42,0.19041073]
[1693486782848,0.07269289,223.71,223.42,0.26349064]
[1693486783043,0.07269289,223.71,223.43,0.19041073]
[1693486783845,0.07269289,223.7,223.43,0.26349064]
[1693486784049,0.07269289,223.7,223.44,0.19041073]
[1693486784851,2.4230966,223.84,223.44,0.19041073]
[1693486784852,0.07269289,223.68,223.44,0.26349064]
[1693486785049,0.07269289,223.68,223.45,0.19041073]
[1693486785954,0.07269289,223.69,223.45,0.26349064]
[1693486786156,0.07269289,223.69,223.46,0.19041073]
[1693486794155,0.07269289,223.68,223.46,0.19041073]
[1693486796458,0.07269289,223.68,223.45,0.19041073]
[1693486796659,0.07269289,223.68,223.46,0.19041073]
[1693486796859,0.07269289,223.68,223.47,0.19041073]
[1693486797159,0.07269289,223.68,223.44,0.07307991]
[1693486797361,0.07269289,223.68,223.45,0.19043142]
[1693486798655,0.07269289,223.68,223.45,0.26351133]
[1693486798855,0.07269289,223.68,223.46,0.19043142]
[1693486799956,0.07269289,223.68,223.45,0.19043142]
[1693486800156,0.07269289,223.68,223.46,0.19043879]
[1693486800356,0.07269289,223.68,223.47,0.19043879]
[1693486800559,0.07269289,223.68,223.44,0.07307991]
[1693486800752,0.07269289,223.68,223.45,0.19042908]
[1693486800958,0.07269289,223.68,223.45,0.26350899]
[1693486801261,0.07269289,223.68,223.46,0.19042908]
[1693486802058,0.07269289,223.68,223.45,0.19042908]
[1693486802254,0.07269289,223.68,223.46,0.19042908]
[1693486802461,0.07269289,223.68,223.47,0.19042908]
[1693486802661,0.07269289,223.68,223.45,0.07307991]
[1693486802856,0.07269289,223.68,223.46,0.19043051]
[1693486806867,0.07269289,223.67,223.46,0.19043051]
[1693486807868,0.07269289,223.67,223.44,0.07307991]
[1693486808268,0.07269289,223.62,223.39,0.07307991]
[1693486808463,0.07269289,223.62,223.4,0.19065498]
[1693486808661,0.07269289,223.64,223.41,0.19065498]
[1693486808865,0.07269289,223.64,223.37,0.07307991]
[1693486809066,0.07269289,223.64,223.38,0.19065158]
[1693486809562,0.07269289,223.65,223.38,0.19065158]
[1693486809766,0.07269289,223.65,223.37,0.19065158]
[1693486809963,0.07269289,223.65,223.38,0.19065158]
[1693486810167,0.07269289,223.65,223.39,0.19065158]
[1693486810367,0.07269289,223.65,223.4,0.19065158]
[1693486810568,0.07269289,223.66,223.37,0.19065158]
[1693486810869,0.07269289,223.66,223.38,0.19065158]
[1693486811063,0.07269289,223.66,223.39,0.19065158]
[1693486811268,0.07269289,223.66,223.36,0.19065158]
[1693486811467,0.07269289,223.66,223.37,0.19065158]
[1693486811663,0.07269289,223.67,223.36,0.19065158]
[1693486811869,0.07269289,223.67,223.37,0.19065158]
[1693486812070,0.07269289,223.67,223.38,0.19065158]
[1693486812267,0.07269289,223.67,223.36,0.19065158]
[1693486812465,0.07269289,223.67,223.37,0.19065158]
[1693486812667,0.07269289,223.68,223.38,0.19065158]
[1693486812966,0.07269289,223.68,223.39,0.19065158]
[1693486813164,0.07269289,223.68,223.36,0.19065158]
[1693486813364,0.07269289,223.68,223.37,0.19065158]
[1693486813567,0.07269289,223.68,223.38,0.19065158]
[1693486813767,0.07269289,223.68,223.39,0.19065158]
[1693486813969,0.07269289,223.68,223.35,0.19065158]
[1693486814269,0.07269289,223.68,223.36,0.19065158]
[1693486814471,0.07269289,223.68,223.37,0.19065158]
[1693486814671,0.07269289,223.68,223.38,0.19065158]
[1693486814970,0.07269289,223.68,223.39,0.19065158]
[1693486815166,0.07269289,223.69,223.35,0.19065158]
[1693486815370,0.07269289,223.69,223.36,0.19065158]
[1693486816871,0.07269289,223.69,223.37,0.19065158]
[1693486817071,0.07269289,223.69,223.35,0.19065158]
[1693486817471,0.07269289,223.68,223.35,0.19065158]
[1693486817674,0.07269289,223.68,223.34,0.19065158]
[1693486817973,0.07269289,223.68,223.35,0.19065158]
[1693486818172,0.07269289,223.68,223.33,0.07307991]
[1693486818173,0.07269289,223.68,223.36,0.19065158]
[1693486818373,0.07269289,223.68,223.37,0.19065158]
[1693486818569,0.07269289,223.68,223.34,0.19065158]
[1693486818874,0.07269289,223.68,223.35,0.19065158]
[1693486819074,0.07269289,223.68,223.34,0.19065158]
[1693486819271,0.07269289,223.68,223.35,0.19065158]
[1693486819571,0.07269289,223.68,223.36,0.19065158]
[1693486819772,0.07269289,223.68,223.33,0.19065158]
[1693486819966,0.07269289,223.68,223.34,0.19065158]
[1693486820164,0.07269289,223.68,223.35,0.19065158]
[1693486820368,0.07269289,223.68,223.36,0.19065158]
[1693486820565,0.07269289,223.68,223.37,0.19065158]
[1693486820766,0.07269289,223.68,223.38,0.19065158]
[1693486820967,0.07269289,223.68,223.39,0.19065158]
[1693486821165,0.07269289,223.68,223.33,0.19065158]
[1693486821369,0.07269289,223.68,223.34,0.19065158]
[1693486821574,0.07269289,223.68,223.35,0.19065158]
[1693486821774,0.07269289,223.68,223.36,0.19065158]
[1693486821974,0.07269289,223.68,223.33,0.19065158]
[1693486822274,0.07269289,223.68,223.34,0.19065158]
[1693486822573,0.07269289,223.68,223.35,0.19065158]
[1693486822775,0.07269289,223.68,223.33,0.19065158]
[1693486822973,0.07269289,223.68,223.34,0.19065158]
[1693486823173,0.07269289,223.68,223.33,0.19065158]
[1693486823373,0.07269289,223.68,223.34,0.19065158]
[1693486823570,0.07269289,223.68,223.35,0.19065158]
[1693486823771,0.07269289,223.68,223.33,0.19065158]
[1693486823972,0.07269289,223.68,223.34,0.19065158]
[1693486824273,0.07269289,223.68,223.35,0.19065158]
[1693486824474,0.07269289,223.68,223.33,0.19065158]
[1693486824674,0.07269289,223.68,223.34,0.19065158]
[1693486824875,0.07269289,223.68,223.33,0.19065158]
[1693486825075,0.07269289,223.68,223.34,0.19065158]
[1693486825271,0.07269289,223.68,223.35,0.19065158]
[1693486825476,0.07269289,223.68,223.36,0.19065158]
[1693486825774,0.07269289,223.68,223.32,0.07307991]
[1693486825775,0.07269289,223.68,223.37,0.19065158]
[1693486825976,0.07269289,223.68,223.33,0.19065158]
[1693486826674,0.07269289,223.68,223.33,0.26373149]
[1693486826874,0.07269289,223.68,223.34,0.19065158]
[1693486828579,0.07269289,223.67,223.34,0.19065158]
[1693486829678,0.07269289,223.67,223.34,0.26373149]
[1693486829873,0.07269289,223.67,223.35,0.19065158]
[1693486830481,0.07269289,223.67,223.34,0.26373149]
[1693486830680,0.07269289,223.67,223.35,0.19065158]
[1693486832980,0.07269289,223.67,223.35,0.26373149]
[1693486833175,0.07269289,223.67,223.36,0.19065158]
[1693486833579,0.07269289,223.66,223.37,0.19065158]
[1693486833781,0.07269289,223.66,223.36,0.19065158]
[1693486834080,0.07269289,223.66,223.37,0.19065158]
[1693486834380,0.07269289,223.66,223.38,0.19065158]
[1693486834576,0.07269289,223.66,223.36,0.19065158]
[1693486834783,0.07269289,223.66,223.37,0.19065158]
[1693486835082,0.07269289,223.66,223.38,0.19065158]
[1693486835282,0.07269289,223.66,223.37,0.19065158]
[1693486835483,0.07269289,223.66,223.38,0.19065158]
[1693486835677,0.07269289,223.66,223.37,0.19065158]
[1693486835882,0.07269289,223.66,223.38,0.19065158]
[1693486836183,0.07269289,223.66,223.39,0.19065158]
[1693486836383,0.07269289,223.66,223.37,0.19065158]
[1693486836589,0.07269289,223.66,223.38,0.19065158]
[1693486836783,0.07269289,223.66,223.37,0.19065158]
[1693486836981,0.07269289,223.66,223.38,0.19065158]
[1693486837279,0.07269289,223.66,223.39,0.19065158]
[1693486837482,0.07269289,223.66,223.4,0.19065158]
[1693486837683,0.07269289,223.66,223.37,0.19065158]
[1693486837883,0.07269289,223.66,223.38,0.19065158]
[1693486838079,0.07269289,223.66,223.37,0.26373149]
[1693486838385,0.07269289,223.66,223.38,0.19065158]
[1693486838585,0.07269289,223.66,223.38,0.26373149]
[1693486838785,0.07269289,223.66,223.39,0.19065158]
[1693486839581,0.07269289,223.65,223.39,0.19065158]
[1693486840382,0.07269289,223.64,223.39,0.19065158]
[1693486840582,0.07269289,223.64,223.39,0.26373149]
[1693486840884,0.07269289,223.64,223.4,0.19065158]
[1693486841686,0.07269289,223.62,223.4,0.26373149]
[1693486841886,0.07269289,223.62,223.41,0.19065158]
[1693486842081,0.07269289,223.62,223.42,0.19065158]
[1693486842285,0.07269289,223.62,223.4,0.07307991]
[1693486842480,0.07269289,223.63,223.41,0.19059956]
[1693486846491,0.07269289,223.62,223.41,0.19059956]
[1693486846790,0.07269289,223.63,223.41,0.19059956]
[1693486847190,0.07269289,223.62,223.41,0.19059956]
[1693486848385,0.07269289,223.63,223.41,0.19059956]
[1693486850489,0.07269289,223.62,223.41,0.19059956]
[1693486850992,0.07269289,223.62,223.42,0.19059956]
[1693486851189,0.07269289,223.62,223.39,0.07307991]
[1693486851389,0.07269289,223.62,223.4,0.1906245]
[1693486851690,0.07269289,223.62,223.4,0.26370441]
[1693486851994,0.07269289,223.62,223.41,0.1906245]
[1693486855597,0.07269289,223.62,223.4,0.26370441]
[1693486855799,0.07269289,223.62,223.41,0.19062472]
[1693486856502,0.07269289,223.62,223.39,0.07307991]
[1693486856692,0.07269289,223.61,223.4,0.19064615]
[1693486859495,0.07269289,223.62,223.4,0.19064615]
[1693486860902,0.07269289,223.62,223.41,0.19064615]
[1693486861103,0.07269289,223.62,223.39,0.07307991]
[1693486861298,0.07269289,223.62,223.4,0.19062418]
[1693486866800,0.07269289,223.62,223.39,0.19062418]
[1693486867004,0.07269289,223.62,223.4,0.19062418]
[1693486867204,0.07269289,223.62,223.41,0.19062418]
[1693486867404,0.07269289,223.62,223.39,0.19062418]
[1693486867705,0.07269289,223.62,223.4,0.19063993]
[1693486867900,0.07269289,223.62,223.38,0.07307991]
[1693486867901,0.07269289,223.61,223.38,0.07307991]
[1693486868105,0.07269289,223.61,223.39,0.19066683]
[1693486868506,0.07269289,223.61,223.38,0.19066683]
[1693486868707,0.07269289,223.61,223.39,0.19066683]
[1693486868907,0.07269289,223.61,223.4,0.19066683]
[1693486869106,0.07269289,223.61,223.38,0.19066683]
[1693486869308,0.07269289,223.61,223.39,0.1906986]
[1693486869507,0.07269289,223.61,223.36,0.07307991]
[1693486869708,0.07269289,223.61,223.37,0.19070526]
[1693486871712,0.07269289,223.61,223.38,0.19070526]
[1693486871911,0.07269289,223.61,223.36,0.19070526]
[1693486872112,0.07269289,223.61,223.37,0.19070526]
[1693486872413,0.07269289,223.61,223.38,0.19070526]
[1693486872613,0.07269289,223.61,223.39,0.19070526]
[1693486872813,0.07269289,223.61,223.36,0.19070526]
[1693486873014,0.07269289,223.61,223.37,0.19070511]
[1693486873216,0.07269289,223.61,223.38,0.19070511]
[1693486873513,0.07269289,223.62,223.39,0.19070511]
[1693486873713,0.07269289,223.62,223.35,0.07307991]
[1693486873909,0.07269289,223.62,223.36,0.19070759]
[1693486876317,0.07269289,223.57,223.36,0.19070759]
[1693486876516,0.07269289,223.56,223.29,0.07307991]
[1693486876716,0.07269289,223.56,223.3,0.19093057]
[1693486877515,0.07269289,223.57,223.3,0.19093057]
[1693486877713,0.07269289,223.57,223.31,0.19093057]
[1693486877910,0.07269289,223.57,223.28,0.19093057]
[1693486878111,0.07269289,223.57,223.29,0.19093057]
[1693486878311,0.07269289,223.57,223.03,0.97439891]
[1693486878312,0.07269289,223.58,223.3,0.19093057]
[1693486878514,0.07269289,223.58,223.31,0.19093057]
[1693486878709,0.07269289,223.58,223.32,0.19093057]
[1693486878912,0.07269289,223.58,223.26,0.07307991]
[1693486878913,0.07269289,223.58,223.33,0.19093057]
[1693486879118,0.07269289,223.59,223.26,0.07307991]
[1693486879315,0.07269289,223.59,223.27,0.1909232]
[1693486879718,0.07269289,223.59,223.28,0.1909232]
[1693486879911,0.07269289,223.58,223.26,0.1909232]
[1693486880115,0.07269289,223.58,223.27,0.1909232]
[1693486880313,0.07269289,223.58,223.28,0.1909232]
[1693486880519,0.07269289,223.59,223.29,0.1909232]
[1693486880718,0.07269289,223.59,223.3,0.1909232]
[1693486880920,0.07269289,223.59,223.31,0.1909232]
[1693486881113,0.07269289,223.59,223.32,0.1909232]
[1693486881317,2.4230966,223.73,223.23,0.07307991]
[1693486881318,0.07269289,223.6,223.23,0.07307991]
[1693486881514,0.07269289,223.6,223.24,0.19091765]
[1693486882423,0.07269289,223.58,223.24,0.19091765]
[1693486882622,0.07269289,223.58,223.14,0.14615983]
[1693486882623,0.07269289,223.58,223.22,0.19091765]
[1693486882823,0.07269289,223.58,223.23,0.19091765]
[1693486883125,0.07269289,223.58,223.24,0.19091765]
[1693486883422,0.06901582,223.58,223.25,0.19091765]
[1693486883622,0.06901582,223.58,223.19,0.19091765]
[1693486883823,0.06901582,223.58,222.94,0.97439891]
[1693486883824,0.14538579,223.58,223.2,0.19091765]
[1693486884022,0.14538579,223.58,223.17,0.19091765]
[1693486884322,0.14538579,223.59,223.18,0.19091765]
[1693486885317,0.14538579,223.6,223.18,0.19091765]
[1693486885621,0.14538579,223.6,223.19,0.19091765]
[1693486885921,0.14538579,223.6,223.2,0.19091765]
[1693486886116,0.14538579,223.61,223.18,0.19091765]
[1693486886321,0.14538579,223.61,223.19,0.19091765]
[1693486886522,0.14538579,223.62,223.2,0.19091765]
[1693486886725,0.14538579,223.62,223.18,0.19091765]
[1693486888624,0.14538579,223.62,223.19,0.18747376]
[1693486888827,0.14538579,223.62,223.17,0.07307991]
[1693486889424,0.14538579,223.62,223.16,0.07307991]
[1693486889623,0.14538579,223.62,223.17,0.18924451]
[1693486890125,0.14538579,223.63,223.17,0.26232442]
[1693486890326,0.14538579,223.63,223.18,0.18924451]
[1693486890526,0.14538579,223.64,223.18,0.26232442]
[1693486890726,0.96759336,223.63,223.19,0.18924451]
[1693486890926,0.14538579,223.63,223.18,0.18924451]
[1693486891229,0.14538579,223.63,223.19,0.18924451]
[1693486891424,0.14538579,223.63,223.18,0.18924451]
[1693486891726,0.14538579,223.63,223.19,0.18924451]
[1693486891926,0.14538579,223.63,223.2,0.18924451]
[1693486892125,0.14538579,223.63,223.17,0.07307991]
[1693486892126,0.14538579,223.63,223.18,0.18924451]
[1693486892326,0.14538579,223.63,223.19,0.18924451]
[1693486892526,0.14538579,223.63,223.18,0.18924451]
[1693486892827,0.14538579,223.63,223.19,0.18924451]
[1693486893127,0.82223395,223.62,223.2,0.18924451]
[1693486893321,0.82223395,223.62,223.18,0.18924451]
[1693486893522,0.82223395,223.62,223.19,0.18924451]
[1693486893726,0.82223395,223.62,223.17,0.18924451]
[1693486893927,0.82223395,223.62,223.18,0.18924451]
[1693486894126,0.82223395,223.62,223.19,0.18924451]
[1693486894328,0.82223395,223.62,223.2,0.18924451]
[1693486894531,0.82223395,223.62,223.17,0.18924451]
[1693486894830,0.82223395,223.62,223.18,0.18924451]
[1693486895228,0.14538579,223.63,223.18,0.18924451]
[1693486898832,0.14538579,223.62,223.18,0.18924451]
[1693486899033,0.14538579,223.63,223.18,0.18924451]
[1693486899331,0.14538579,223.62,223.18,0.26232442]
[1693486899532,0.14538579,223.63,223.19,0.18924451]
[1693486899730,0.14538579,223.67,223.22,0.07307991]
[1693486899934,0.14538579,223.68,223.23,0.18924451]
[1693486900136,0.14538579,223.68,223.24,0.07307991]
[1693486900338,0.14538579,223.68,223.25,0.18924451]
[1693486901635,0.14538579,223.67,223.25,0.18924451]
[1693486902433,0.14538579,223.67,223.25,0.26232442]
[1693486902634,0.14538579,223.67,223.26,0.18924451]
[1693486903536,0.14538579,223.66,223.26,0.18924451]
[1693486904835,0.14538579,223.66,223.26,0.26232442]
[1693486905030,0.14538579,223.66,223.27,0.18924451]
[1693486907035,0.14538579,223.66,223.28,0.18924451]
[1693486907336,0.14538579,223.65,223.29,0.18924451]
[1693486907535,0.14538579,223.65,223.3,0.18924451]
[1693486907730,0.14538579,223.65,223.27,0.18924451]
[1693486910336,0.14538579,223.65,223.27,0.26232442]
[1693486910536,2.4230966,223.76,223.28,0.18924451]
[1693486910537,0.14538579,223.64,223.28,0.18924451]
[1693486910938,0.14538579,223.64,223.27,0.18924451]
[1693486911238,0.14538579,223.64,223.28,0.18924451]
[1693486911440,0.14538579,223.63,223.29,0.18924451]
[1693486911632,0.14538579,223.63,223.3,0.18924451]
[1693486911832,0.14538579,223.63,223.31,0.18924451]
[1693486912035,0.14538579,223.63,223.26,0.07307991]
[1693486912036,0.14538579,223.63,223.27,0.18924451]
[1693486912238,0.14538579,223.63,223.28,0.18924451]
[1693486912440,0.14538579,223.63,223.27,0.18924451]
[1693486912640,0.14538579,223.63,223.28,0.18924451]
[1693486912938,0.14538579,223.63,223.29,0.18924451]
[1693486913140,0.14538579,223.63,223.3,0.18924451]
[1693486913337,0.14538579,223.59,223.27,0.18924451]
[1693486913534,0.14538579,223.59,223.28,0.18922437]
[1693486913833,0.14538579,223.59,223.29,0.18922437]
[1693486914038,0.14538579,223.59,223.22,0.18922437]
[1693486914339,0.14538579,223.59,223.23,0.18922437]
[1693486914541,0.14538579,223.59,223.22,0.18922437]
[1693486914734,0.14538579,223.59,223.23,0.18922437]
[1693486915037,0.14538579,223.59,223.24,0.18922437]
[1693486915237,0.14538579,223.59,223.25,0.18922437]
[1693486915438,0.14538579,223.59,223.26,0.18922437]
[1693486915638,0.14538579,223.59,223.22,0.18922437]
[1693486915838,0.14538579,223.59,223.23,0.18922437]
[1693486916036,0.14538579,223.59,223.22,0.18922437]
[1693486916236,0.14538579,223.59,223.23,0.18922437]
[1693486916439,0.14538579,223.59,223.22,0.18922437]
[1693486916639,0.14538579,223.59,223.23,0.18922437]
[1693486916839,0.14538579,223.59,223.24,0.18922437]
[1693486917040,0.14538579,223.59,223.25,0.18922437]
[1693486917240,0.14538579,223.59,223.26,0.18922437]
[1693486917437,0.14538579,223.59,223.22,0.18922437]
[1693486917643,0.14538579,223.59,223.23,0.18922437]
[1693486917837,0.14538579,223.59,223.22,0.18922437]
[1693486918039,0.14538579,223.59,223.21,0.07307991]
[1693486918040,0.14538579,223.59,223.23,0.18922437]
[1693486918242,0.14538579,223.59,223.24,0.18922437]
[1693486918443,0.14538579,223.59,223.25,0.18922437]
[1693486918642,0.14538579,223.59,223.26,0.18922437]
[1693486918841,0.14538579,223.59,223.22,0.18922437]
[1693486919042,0.14538579,223.59,223.23,0.18922437]
[1693486919237,0.14538579,223.59,223.22,0.18922437]
[1693486919441,0.14538579,223.59,223.23,0.18922437]
[1693486919744,0.14538579,223.59,223.24,0.18922437]
[1693486919936,0.14538579,223.59,223.25,0.18922437]
[1693486920141,0.14538579,223.59,223.26,0.18922437]
[1693486920338,0.14538579,223.59,223.22,0.18922437]
[1693486920541,0.14538579,223.59,223.23,0.18922437]
[1693486920740,0.14538579,223.59,223.24,0.18922437]
[1693486920941,0.14538579,223.6,223.25,0.18922437]
[1693486921243,0.14538579,223.59,223.26,0.18922437]
[1693486921444,0.14538579,223.59,223.22,0.18922437]
[1693486921743,0.14538579,223.59,223.23,0.18922437]
[1693486921942,0.14538579,223.59,223.24,0.18922437]
[1693486922143,0.14538579,223.59,223.22,0.18922437]
[1693486922343,0.14538579,223.59,223.23,0.18922437]
[1693486922643,0.14538579,223.59,223.21,0.07307991]
[1693486922644,0.14538579,223.59,223.24,0.18922437]
[1693486922944,0.14538579,223.59,223.25,0.18922437]
[1693486923142,0.14538579,223.59,223.22,0.18922437]
[1693486923342,0.14538579,223.59,223.23,0.18922437]
[1693486923544,0.14538579,223.59,223.24,0.18922437]
[1693486923743,0.14538579,223.59,223.25,0.18922437]
[1693486923943,0.14538579,223.59,223.22,0.18922437]
[1693486924144,0.14538579,223.59,223.23,0.18922437]
[1693486924348,0.14538579,223.58,223.24,0.18922437]
[1693486924644,0.14538579,223.59,223.25,0.18922437]
[1693486924943,0.14538579,223.59,223.26,0.18922437]
[1693486925144,0.14538579,223.58,223.27,0.18922437]
[1693486925346,0.14538579,223.58,223.28,0.18922437]
[1693486925542,0.14538579,223.59,223.22,0.18922437]
[1693486925746,0.14538579,223.59,223.23,0.18922437]
[1693486926045,0.14538579,223.59,223.24,0.18922437]
[1693486926245,0.14538579,223.59,223.22,0.18922437]
[1693486926445,0.14538579,223.59,223.23,0.18922437]
[1693486926647,0.14538579,223.59,223.24,0.18922437]
[1693486926947,0.14538579,223.59,223.25,0.18922437]
[1693486927146,0.14538579,223.59,223.22,0.18922437]
[1693486927346,0.14538579,223.59,223.21,0.07307991]
[1693486927347,0.14538579,223.58,223.23,0.18922437]
[1693486927646,0.14538579,223.58,223.21,0.07307991]
[1693486927647,0.14538579,223.58,223.24,0.18922437]
[1693486927843,0.14538579,223.58,223.25,0.18922437]
[1693486928047,0.14538579,223.58,223.26,0.18922437]
[1693486928250,0.14538579,223.58,223.21,0.18922437]
[1693486928450,0.14538579,223.58,223.22,0.18922437]
[1693486928641,0.14538579,223.58,223.23,0.18922437]
[1693486928846,0.14538579,223.58,223.21,0.18922437]
[1693486929049,0.14538579,223.58,223.22,0.18922437]
[1693486929248,0.14538579,223.58,223.23,0.18922437]
[1693486929443,0.14538579,223.58,223.21,0.18922437]
[1693486929645,0.14538579,223.58,223.22,0.18922437]
[1693486929846,0.14538579,223.58,223.23,0.18922437]
[1693486930043,0.14538579,223.58,223.21,0.18922437]
[1693486930353,0.14538579,223.58,223.22,0.18922437]
[1693486930542,0.14538579,223.58,223.23,0.18922437]
[1693486930747,0.14538579,223.58,223.24,0.18922437]
[1693486930949,0.14538579,223.58,223.2,0.18922437]
[1693486931148,0.14538579,223.58,223.21,0.18922437]
[1693486931347,0.14538579,223.58,223.2,0.18922437]
[1693486931545,0.14538579,223.58,223.21,0.18922437]
[1693486931747,0.14538579,223.58,223.2,0.18922437]
[1693486931948,0.14538579,223.58,223.21,0.18922437]
[1693486932149,0.14538579,223.58,223.2,0.18922437]
[1693486932348,0.14538579,223.58,223.21,0.18922437]
[1693486932543,0.14538579,223.58,223.2,0.18922437]
[1693486933552,0.14538579,223.58,223.21,0.18922437]
[1693486933745,0.14538579,223.58,223.19,0.18922437]
[1693486933950,0.14538579,223.58,223.2,0.18922437]
[1693486934551,0.14538579,223.58,223.21,0.18922437]
[1693486934748,0.14538579,223.58,223.22,0.18922437]
[1693486934948,0.14538579,223.58,223.19,0.18922437]
[1693486935151,0.14538579,223.58,223.2,0.18922437]
[1693486935351,0.14538579,223.58,223.21,0.18922437]
[1693486935550,0.14538579,223.58,223.22,0.18922437]
[1693486935748,0.14538579,223.58,223.23,0.18922437]
[1693486935955,0.14538579,223.58,223.24,0.18922437]
[1693486936156,0.14538579,223.58,223.19,0.18922437]
[1693486936355,0.14538579,223.58,223.2,0.18922437]
[1693486936556,0.14538579,223.58,223.21,0.18922437]
[1693486936752,0.14538579,223.58,223.22,0.18922437]
[1693486936956,0.14538579,223.58,223.23,0.18922437]
[1693486937152,0.14538579,223.58,223.19,0.18922437]
[1693486937351,0.14538579,223.58,223.2,0.18922437]
[1693486937551,0.14538579,223.58,223.19,0.18922437]
[1693486937755,0.14538579,223.58,223.2,0.18922437]
[1693486937952,0.14538579,223.58,223.21,0.18922437]
[1693486938157,0.14538579,223.58,223.22,0.18922437]
[1693486938458,0.14538579,223.58,223.23,0.18922437]
[1693486938651,0.14538579,223.58,223.19,0.18922437]
[1693486938857,0.14538579,223.58,223.2,0.18922437]
[1693486939058,0.14538579,223.58,223.19,0.18922437]
[1693486939258,0.14538579,223.58,223.2,0.18922437]
[1693486939460,0.14538579,223.57,223.19,0.18922437]
[1693486939659,0.14538579,223.57,223.18,0.07307991]
[1693486939660,0.14538579,223.57,223.2,0.18922437]
[1693486939860,0.14538579,223.57,223.19,0.18922437]
[1693486940060,0.14538579,223.57,223.2,0.18922437]
[1693486940256,0.14538579,223.57,223.19,0.18922437]
[1693486940463,0.14538579,223.57,223.2,0.18922437]
[1693486941662,0.14538579,223.56,223.2,0.18922437]
[1693486942763,0.14538579,223.57,223.2,0.26230428]
[1693486942963,0.14538579,223.57,223.21,0.18922437]
[1693486943360,0.14538579,223.56,223.21,0.26230428]
[1693486943556,0.14538579,223.56,223.22,0.18922437]
[1693486943757,0.14538579,223.57,223.22,0.18922437]
[1693486944463,0.14538579,223.57,223.23,0.07307991]
[1693486944664,0.14538579,223.57,223.24,0.18922437]
[1693486945465,0.14538579,223.56,223.24,0.26230428]
[1693486945666,0.14538579,223.56,223.25,0.18922437]
[1693486946264,0.14538579,223.55,223.25,0.26230428]
[1693486946464,0.14538579,223.55,223.26,0.18922437]
[1693486947366,3.39233524,223.69,223.26,0.18922437]
[1693486947367,0.14538579,223.54,223.27,0.07307991]
[1693486947567,0.14538579,223.54,223.28,0.18922437]
[1693486951765,0.14538579,223.55,223.28,0.18922437]
[1693486951970,0.14538579,223.54,223.28,0.18922437]
[1693486953367,0.14538579,223.56,223.28,0.26230428]
[1693486953569,0.14538579,223.56,223.29,0.18922437]
[1693486953974,0.14538579,223.55,223.29,0.18922437]
[1693486954472,0.14538579,223.56,223.29,0.18922437]
[1693486955869,0.14538579,223.6,223.32,0.07307991]
[1693486956070,0.14538579,223.6,223.33,0.18922437]
[1693486956464,0.14538579,223.62,223.33,0.18922437]
[1693486956667,0.14538579,223.62,223.34,0.18922437]
[1693486956865,0.14538579,223.62,223.35,0.18922437]
[1693486957070,0.14538579,223.62,223.36,0.18922437]
[1693486957267,0.14538579,223.62,223.32,0.18922437]
[1693486957573,0.14538579,223.63,223.33,0.18901639]
[1693486957767,0.14538579,223.63,223.34,0.18901639]
[1693486957966,0.14538579,223.63,223.35,0.18901639]
[1693486958172,0.14538579,223.63,223.36,0.18901639]
[1693486958369,0.14538579,223.63,223.31,0.18901639]
[1693486958566,0.14538579,223.63,223.32,0.18901674]
[1693486958770,0.14538579,223.63,223.3,0.18901674]
[1693486958971,0.14538579,223.63,223.31,0.18901674]
[1693486959175,0.14538579,223.63,223.32,0.18901674]
[1693486959477,0.14538579,223.63,223.33,0.18901674]
[1693486959673,0.14538579,223.63,223.34,0.18901674]
[1693486959873,0.14538579,223.63,223.29,0.18901674]
[1693486960074,0.14538579,223.63,223.3,0.18901674]
[1693486960275,0.14538579,223.63,223.29,0.18901674]
[1693486960476,0.14538579,223.63,223.3,0.18901674]
[1693486960675,0.14538579,223.63,223.31,0.18901674]
[1693486960874,0.14538579,223.63,223.28,0.18901674]